[Event "Czech Extraliga 2024-25"]
[Site "Czechia"]
[Date "2024.11.02"]
[Round "1.1"]
[White "Navara, David"]
[Black "Teclaf, Pawel"]
[Result "1/2-1/2"]
[ECO "C43"]
[WhiteElo "2674"]
[BlackElo "2568"]
[Annotator "TA"]
[PlyCount "46"]
[EventDate "2024.09.12"]
[EventType "team-tourn"]
[EventCountry "CZE"]
[SourceTitle "playchess.com"]
[Source "ChessBase"]
[SourceQuality "1"]
[TimeControl "40/5400+30:1800+30"]

{[%evp 9,46,12,16,6,5,12,33,13,24,33,33,27,17,22,15,6,16,5,28,0,4,0,10,10,18,-1,0,1,5,0,0,4,6,0,0,-16,-10,-21,-24]} 1. e4 {[%emt 0:00:02]} e5 {[%emt 0:01:40]} 2. Nf3 {[%emt 0:00:07]} Nf6 {[%emt 0:00:03][%cal Bg8f6,Bf6e4,Be4c5][%mdl 32]} 3. d4 {[%emt 0:00:05]} Nxe4 {[%emt 0:00:11]} 4. dxe5 {[%emt 0:00:07]} d5 {[%emt 0:00:04]} 5. Nbd2 {[%emt 0:00:09]} Qd7 {[%emt 0:01:42]} 6. Bd3 {[%emt 0:00:08]} Nc5 {[%emt 0:02:03]} 7. Be2 {[%emt 0:00:05]} Nc6 {[%emt 0:02:52]} 8. O-O {[%emt 0:01:47] White is slightly better.} Be7 {[%emt 0:02:00]} 9. Nb3 {[%emt 0:07:22]} O-O {[%emt 0:17:16]} 10. Be3 {[%emt 0:02:24]} Nxb3 {[%emt 0:12:06]} 11. axb3 {[%emt 0:00:40]} Qe6 {[%emt 0:02:05]} 12. Bf4 {[%emt 0:04:28]} Qg6 {[%emt 0:03:31] Repels Bg3} 13. c3 {[%emt 0:02:23][%cal Ob3b4]} Rd8 {[%emt 0:02:34] [#]} 14. e6 $1 {[%emt 0:09:59]} Bxe6 {[%emt 0:05:02][%cal Od5d4] The position is equal.} 15. Bxc7 {[%emt 0:00:49]} Bh3 {[%emt 0:06:10][%csl Gh3][%cal Rg6g2]} 16. Bg3 {[%emt 0:01:48]} Bg4 {[%emt 0:01:43]} 17. Re1 {[%emt 0:08:33]} Bf6 {[%emt 0:14:39]} (17... d4 $5 18. cxd4 (18. Nxd4 Nxd4 19. cxd4 Bb4 $11) 18... Bb4 $11) 18. Nh4 {[%emt 0:05:03]} Bxe2 {[%emt 0:00:08]} 19. Qxe2 {[%emt 0:00:12]} Bxh4 {[%emt 0:00:04]} 20. Bxh4 {[%emt 0:00:11]} f6 $1 {[%emt 0:00:01]} 21. Bg3 {[%emt 0:10:05]} d4 {[%emt 0:01:14]} 22. Qc4+ {[%emt 0:03:28]} Qf7 {[%emt 0:00:16]} 23. cxd4 {[%emt 0:00:11]} Qxc4 {[%emt 0:03:56] Weighted Error Value: White=0.08 (flawless) /Black=0.02 (flawless) .  OK:         	White=5     	Black=11     Best:        	---       	Black=2      Strong:       	---       	Black=1} 1/2-1/2

[Event "Czech Extraliga 2024-25"]
[Site "Czechia"]
[Date "2024.11.02"]
[Round "1.1"]
[White "Saric, Ivan"]
[Black "Stinka, Jakub"]
[Result "1-0"]
[ECO "C42"]
[WhiteElo "2668"]
[BlackElo "2355"]
[Annotator "TA"]
[PlyCount "70"]
[EventDate "2024.09.12"]
[EventType "team-tourn"]
[EventCountry "CZE"]
[SourceTitle "playchess.com"]
[Source "ChessBase"]
[SourceQuality "1"]
[TimeControl "40/5400+30:1800+30"]

{[%evp 13,70,24,19,21,21,20,25,20,23,0,0,-16,-10,-20,0,0,46,29,27,22,51,35,79,34,27,0,0,-43,-29,-39,-39,-56,87,41,47,9,90,92,151,141,200,194,241,227,226,225,282,279,273,232,397,322,638,643,6159,5949,29977,29973,29997]} 1. e4 {[%emt 0:00:01]} e5 {[%emt 0:00:05]} 2. Nf3 {[%emt 0:00:05]} Nf6 {[%emt 0:00:06]} 3. Nxe5 {[%emt 0:06:43]} d6 {[%emt 0:00:09]} 4. Nf3 {[%emt 0:00:02]} Nxe4 {[%emt 0:00:07]} 5. Nc3 {[%emt 0:00:26]} Nxc3 {[%emt 0:00:10]} 6. dxc3 {[%emt 0:00:03]} Be7 {[%emt 0:00:41]} 7. Be3 {[%emt 0:01:12]} O-O {[%emt 0:00:31]} 8. Qd2 {[%emt 0:00:12]} Nd7 {[%emt 0:00:54]} 9. O-O-O {[%emt 0:00:13]} Nf6 {[%emt 0:00:37]} 10. Bd3 {[%emt 0:02:23] White has an edge.} Re8 {[%emt 0:02:16]} 11. c4 {[%emt 0:03:08]} a6 {[%emt 0:12:00][%cal Ob7b5]} 12. h4 {[%emt 0:02:09][%cal Bh2h4,Bh4h5,Bh5h6][%mdl 32] [#]} b5 $1 {[%emt 0:17:28]} 13. h5 {[%emt 0:09:40]} (13. Bg5 h6) 13... Be6 {[%emt 0:11:07]} 14. Nd4 {[%emt 0:01:32]} bxc4 {[%emt 0:07:51]} (14... Bd7 $11) 15. Nxe6 $14 {[%emt 0:00:34]} fxe6 {[%emt 0:00:05]} 16. Bxc4 {[%emt 0:00:17] A strong pair of Bishops.} d5 {[%emt 0:00:37]} 17. Bd3 {[%emt 0:18:42]} Qd7 {[%emt 0:07:33]} 18. h6 {[%emt 0:04:23] hxg7 would now be deadly. White is more active.} g6 {[%emt 0:03:30]} 19. Qc3 {[%emt 0:09:24]} c5 {[%emt 0:06:41]} 20. Bxc5 {[%emt 0:04:44] Bd4 is the strong threat.} Rac8 {[%emt 0:05:29]} 21. b4 {[%emt 0:00:07]} Bxc5 {[%emt 0:02:24]} 22. bxc5 {[%emt 0:00:33]} e5 {[%emt 0:03:04] [#]} (22... Qe7 $15) 23. Bxa6 {[%emt 0:01:55]} (23. f4 $1 $16 {[%cal Rf4e5]} Qa7 24. fxe5 Rxc5 25. Qd4) 23... Rc7 $1 {[%emt 0:06:12]} 24. Rhe1 {[%emt 0:08:21]} Qa4 {[%emt 0:02:34]} (24... Ne4 $2 25. Rxe4 Qf5 26. Re3 $18 (26. Rxd5 Qxe4 27. Bb5 Qf4+ 28. Kb2 Rb8 $18)) (24... Re6 $11 {keeps the balance.} 25. Bf1 Qe7) 25. Bd3 $16 {[%emt 0:00:24]} Qf4+ {[%emt 0:01:40] [#]} (25... Re6 $142) 26. Rd2 $1 {[%emt 0:03:09]} e4 {[%emt 0:07:22]} (26... Qxh6 $16 {was worth a try.} 27. Rxe5 Rb8) 27. Bb5 $18 {[%emt 0:00:58]} Rf8 {[%emt 0:00:55]} (27... Re6 $142 28. Qd4 Qxh6) 28. c6 {[%emt 0:01:00]} Qxh6 {[%emt 0:01:02]} 29. Qe5 {[%emt 0:02:14] Wards off Qg5} Qg7 {[%emt 0:00:56]} 30. c4 {[%emt 0:01:41]} dxc4 {[%emt 0:00:39]} 31. Red1 {[%emt 0:01:02][%cal Od2d8] Strongly threatening Rd8!} Re7 $2 {[%emt 0:00:41]} (31... Rcc8 {was called for.} 32. a4 (32. Bxc4+ Kh8 $18) 32... Kh8) 32. Qc3 {[%emt 0:01:16]} (32. Bxc4+ Kh8 33. Be6 Nh5 34. Qxg7+ (34. Qxe4 $2 Nf4 $19) 34... Nxg7 $18) 32... Qh6 $2 {[%emt 0:00:31]} (32... h5 33. Rd8 (33. Bxc4+ Kh7 $18) 33... Kh7) 33. Kc2 {[%emt 0:01:27]} e3 {[%emt 0:00:31]} 34. Bxc4+ {[%emt 0:00:24]} Kh8 {[%emt 0:00:14]} 35. Rd8 {[%emt 0:00:37]} Rxd8 {[%emt 0:00:43] Weighted Error Value: White=0.16 (very precise) /Black=0.70.  Mistake:       	White=1     	Black=8      Inaccurate:     	White=4     	Black=2      OK:         	White=5     	Black=9      Best:        	White=4     	Black=1      Strong:       	White=1     	Black=1} 1-0

[Event "Czech Extraliga 2024-25"]
[Site "Czechia"]
[Date "2024.11.02"]
[Round "1.1"]
[White "Ter-Sahakyan, Samvel"]
[Black "Eljanov, Pavel"]
[Result "1/2-1/2"]
[ECO "C54"]
[WhiteElo "2608"]
[BlackElo "2672"]
[Annotator "TA"]
[PlyCount "116"]
[EventDate "2024.09.12"]
[EventType "team-tourn"]
[EventCountry "CZE"]
[SourceTitle "playchess.com"]
[Source "ChessBase"]
[SourceQuality "1"]
[TimeControl "40/5400+30:1800+30"]

{[%evp 40,116,-21,0,0,-2,0,0,0,0,0,-32,-39,-29,-25,-124,-101,-130,-95,-250,-86,-81,-83,-80,-91,-83,-87,-90,-91,-93,-85,-92,-11,-38,0,0,0,0,0,0,0,-5,-5,-8,-8,-97,-97,-97,-96,-82,-64,-75,-22,-22,-8,-8,-3,-12,-19,-15,0,0,0,0,0,0,0,0,0,0,0,0,0,0,0,0,0,0,0]} 1. e4 {[%emt 0:00:09]} e5 {[%emt 0:00:13]} 2. Nf3 {[%emt 0:00:06]} Nc6 {[%emt 0:00:08]} 3. Bc4 {[%emt 0:01:28]} Bc5 {[%emt 0:00:11]} 4. c3 {[%emt 0:01:37]} Nf6 {[%emt 0:00:08]} 5. d3 {[%emt 0:00:05]} O-O {[%emt 0:00:29]} 6. O-O {[%emt 0:00:32]} d6 {[%emt 0:00:06]} 7. Re1 {[%emt 0:02:08]} a5 {[%emt 0:00:48] C54: Giuoco Piano: 4 c3 Nf6, main lines with 5 d4 and 5 d3.} 8. Nbd2 {[%emt 0:00:48]} Be6 {[%emt 0:04:23]} 9. Bb5 {[%emt 0:00:51]} Qb8 {[%emt 0:01:28]} 10. Nf1 {[%emt 0:12:09]} Qa7 {[%emt 0:00:12]} 11. Be3 {[%emt 0:00:28]} Bxe3 {[%emt 0:02:46]} 12. Nxe3 {[%emt 0:00:06]} Ne7 {[%emt 0:06:18]} 13. Ba4 {[%emt 0:08:14]} h6 {[%emt 0:02:30]} 14. Bc2 {[%emt 0:02:24]} Ng6 {[%emt 0:13:37]} 15. d4 {[%emt 0:00:54]} a4 {[%emt 0:02:20]} 16. Qd2 $146 {[%emt 0:08:55]} ({Predecessor:} 16. Nf5 Rfd8 17. Qd2 b5 18. Rad1 Bxa2 19. Nxh6+ gxh6 20. Qxh6 c5 21. dxe5 dxe5 22. Nxe5 Rxd1 23. Rxd1 Nxe5 24. Qxf6 {½-½ Vachier Lagrave,M (2784)-Aronian,L (2781) Chess.com Speed blitz 2020 (2.13)}) 16... b5 {[%emt 0:18:15]} 17. d5 {[%emt 0:14:24]} Bd7 {[%emt 0:00:52]} 18. Rad1 {[%emt 0:01:28]} Rfd8 {[%emt 0:05:52]} 19. g3 {[%emt 0:08:01]} c6 {[%emt 0:01:38]} 20. Qe2 {[%emt 0:07:54]} a3 {[%emt 0:06:52]} 21. b3 {[%emt 0:03:46]} cxd5 {[%emt 0:10:10]} 22. Nxd5 {[%emt 0:00:06]} Nxd5 {[%emt 0:00:07]} 23. Rxd5 {[%emt 0:00:04]} Qc7 {[%emt 0:01:13]} 24. Red1 {[%emt 0:03:03]} Bg4 {[%emt 0:02:29]} 25. R5d3 {[%emt 0:09:17]} Nf8 {[%emt 0:06:13]} 26. Re3 {[%emt 0:08:57]} b4 {[%emt 0:02:11]} 27. cxb4 {[%emt 0:03:23]} (27. Qe1 $11 {remains equal.}) 27... Ne6 $17 {[%emt 0:00:12]} 28. Qc4 {[%emt 0:00:28]} Qb6 {[%emt 0:01:01]} 29. Bd3 $2 {[%emt 0:01:42] [#]} (29. Qf1 $17) 29... d5 $2 {[%emt 0:10:07]} (29... Rdc8 $1 $19 {[%cal Rc8c4][%mdl 512] is more deadly.} 30. Qd5 Nc7 (30... Qxb4 31. Bc4 $11)) 30. exd5 $17 {[%emt 0:00:49]} Bxf3 $1 {[%emt 0:00:13]} 31. Rxf3 {[%emt 0:00:51]} Nd4 {[%emt 0:00:03]} 32. Be4 {[%emt 0:00:46]} (32. Re3 $2 Rdc8 $19) 32... Rac8 {[%emt 0:00:36]} 33. Qd3 {[%emt 0:00:29]} Nxf3+ {[%emt 0:01:18]} 34. Qxf3 {[%emt 0:00:27]} Qxb4 {[%emt 0:00:26]} 35. h4 {[%emt 0:00:33]} Qd6 {[%emt 0:01:57]} (35... g6 $17 36. h5 f5) 36. h5 $11 {[%emt 0:00:13]} Qf6 {[%emt 0:00:33]} 37. Qxf6 $1 {[%emt 0:00:35]} gxf6 {[%emt 0:00:01]} 38. d6 {[%emt 0:00:38]} Rb8 {[%emt 0:00:38]} 39. Bf5 $1 {[%emt 0:00:37]} Rb4 $1 {[%emt 0:00:31]} 40. d7 {[%emt 0:00:18]} Rd4 $1 {[%emt 0:00:40]} 41. Rc1 {[%emt 0:18:04]} Kf8 {[%emt 0:00:14]} 42. Rc6 {[%emt 0:01:56]} (42. Rc2 $1 $11) 42... Rd1+ $17 {[%emt 0:12:08]} 43. Kg2 {[%emt 0:00:47]} Rd2 $1 {[%emt 0:00:05]} (43... Ke7 44. Ra6 $16) 44. Rxf6 {[%emt 0:04:56] [#]} e4 $1 {[%emt 0:00:02]} 45. Bxe4 {[%emt 0:02:23] [#]} (45. Rxh6 $2 {perishes.} e3 46. Kf1 Rxf2+ (46... exf2 47. Ra6 $16) 47. Ke1 Rxf5 $19) 45... R8xd7 {[%emt 0:00:06]} (45... Kg7 $1 $17 {[%cal Rg7f6]} 46. Ra6 R8xd7 47. Rxa3 Re2) 46. Rxh6 $11 {[%emt 0:00:24]} Rxa2 {[%emt 0:04:52]} 47. Ra6 {[%emt 0:00:06]} Rdd2 {[%emt 0:01:11]} 48. g4 {[%emt 0:03:09]} Rxf2+ {[%emt 0:03:00]} 49. Kg3 {[%emt 0:00:03]} Rfb2 {[%emt 0:03:02]} 50. Ra8+ {[%emt 0:00:44]} Ke7 $1 {[%emt 0:00:39]} 51. h6 {[%emt 0:03:45]} Rxb3+ {[%emt 0:10:56]} 52. Bf3 {[%emt 0:00:30]} Rxf3+ {[%emt 0:00:30]} 53. Kxf3 {[%emt 0:00:30]} Rh2 {[%emt 0:00:30]} 54. g5 {[%emt 0:00:30]} (54. Rxa3 $2 {loses.} Rh3+ (54... Rxh6 55. Ra8 $11) 55. Kf4 Rxa3 $19) 54... a2 55. Kg3 {[%emt 0:00:30]} Rh5 {[%emt 0:01:00]} 56. Kg4 {[%emt 0:00:30]} Rh2 $1 {[%emt 0:00:30]} 57. Ra7+ {[%emt 0:00:30]} Kf8 {[%emt 0:00:30]} 58. Ra8+ {[%emt 0:00:30]} Ke7 {[%emt 0:00:30]} 1/2-1/2

[Event "Czech Extraliga 2024-25"]
[Site "Czechia"]
[Date "2024.11.02"]
[Round "1.1"]
[White "Pechac, Jergus"]
[Black "Ivanchuk, Vasyl"]
[Result "0-1"]
[ECO "C42"]
[WhiteElo "2598"]
[BlackElo "2640"]
[Annotator "TA"]
[PlyCount "92"]
[EventDate "2024.09.12"]
[EventType "team-tourn"]
[EventCountry "CZE"]
[SourceTitle "playchess.com"]
[Source "ChessBase"]
[SourceQuality "1"]
[TimeControl "40/5400+30:1800+30"]

{[%evp 18,92,32,38,35,29,33,35,56,43,45,49,42,55,72,62,54,45,62,41,52,38,33,35,49,55,46,46,47,48,52,52,52,52,52,54,53,50,35,39,53,42,42,39,42,0,50,49,50,48,49,6,9,-57,-63,-79,-72,-149,-146,-151,-151,-230,-227,-29988,-29989,-29989,-29990,-29990,-29990,-29990,-29991,-29991,-29990,-29991,-29992,-29992,-29993]} 1. e4 {[%emt 0:00:04]} e5 {[%emt 0:00:36]} 2. Nf3 {[%emt 0:00:05]} Nf6 {[%emt 0:01:17][%cal Bg8f6,Bf6e4,Be4d2][%mdl 32]} 3. Nxe5 {[%emt 0:00:50]} d6 {[%emt 0:00:05]} 4. Nf3 {[%emt 0:00:06]} Nxe4 {[%emt 0:00:35]} 5. d4 {[%emt 0:00:16]} d5 {[%emt 0:00:04]} 6. Bd3 {[%emt 0:00:06]} Nc6 {[%emt 0:01:45]} 7. O-O {[%emt 0:00:29]} Be7 {[%emt 0:00:03]} 8. Nbd2 {[%emt 0:00:07]} Nxd2 {[%emt 0:00:17]} 9. Bxd2 {[%emt 0:00:06]} Bg4 {[%emt 0:00:03]} 10. c3 {[%emt 0:00:08]} O-O {[%emt 0:00:05]} 11. h3 {[%emt 0:00:03]} Bh5 {[%emt 0:00:04]} 12. g3 {[%emt 0:00:06]} Bg6 {[%emt 0:00:02] White is slightly better.} 13. Bxg6 {[%emt 0:00:48]} hxg6 {[%emt 0:00:02]} 14. Kg2 {[%emt 0:06:17]} Qd7 {[%emt 0:00:53]} 15. Bf4 {[%emt 0:04:17]} Bd6 {[%emt 0:01:19]} 16. Bxd6 {[%emt 0:01:14]} Qxd6 {[%emt 0:00:01]} 17. Qd3 {[%emt 0:00:44]} Rae8 {[%emt 0:01:42]} 18. Rae1 {[%emt 0:00:26]} a6 {[%emt 0:00:59]} 19. Re2 {[%emt 0:05:44]} Rxe2 {[%emt 0:04:02]} 20. Qxe2 {[%emt 0:00:33]} Nd8 {[%emt 0:01:10][%cal Bc6d8,Bd8e6,Be6c5,Bc5e4][%mdl 32]} 21. h4 {[%emt 0:02:22]} Ne6 {[%emt 0:00:20]} 22. Ne5 {[%emt 0:02:19]} c5 {[%emt 0:04:06]} 23. dxc5 {[%emt 0:20:39]} Nxc5 {[%emt 0:00:15] White must now prevent ...Re8.} 24. Nf3 {[%emt 0:00:33]} Ne4 {[%emt 0:04:18]} 25. Rd1 {[%emt 0:01:22][%cal Oe2e4] Hoping for Qxe4!} Re8 {[%emt 0:00:47]} 26. Qe3 {[%emt 0:11:23]} Nf6 {[%emt 0:00:50]} 27. Qd4 {[%emt 0:00:41]} Re2 {[%emt 0:13:41][%cal Of6e4] ...Ne4! is the strong threat.} 28. Rd2 {[%emt 0:01:02]} Re4 {[%emt 0:00:08]} 29. Qa7 {[%emt 0:01:16]} Qc6 {[%emt 0:00:06]} 30. Nd4 {[%emt 0:03:55]} Qc4 {[%emt 0:14:40]} 31. Nf3 {[%emt 0:06:38] Prevents Re1} (31. Qxb7 $2 Re1 $19) 31... Qc6 {[%emt 0:08:10]} 32. a3 {[%emt 0:01:18]} Re7 {[%emt 0:01:57]} 33. Rd4 {[%emt 0:03:02]} Ne4 {[%emt 0:05:10]} 34. a4 {[%emt 0:12:57]} f6 {[%emt 0:06:01]} 35. Rb4 {[%emt 0:02:59]} ({White should play} 35. Qb8+ $11 Re8 36. Qa7) 35... Nc5 $1 $15 {[%emt 0:08:57]} 36. Qb8+ {[%emt 0:08:30]} Kh7 {[%emt 0:10:29][%cal Oc6d7]} 37. Qf8 {[%emt 0:01:19] [#]} ({Better is} 37. h5 gxh5 (37... Nxa4 $2 38. hxg6+ Kxg6 39. Rg4+ Kf7 40. Qh8 $18) 38. Rh4) 37... Qd7 $1 $17 {[%emt 0:06:07][%cal Oa6a5]} 38. h5 {[%emt 0:01:37] [#]} g5 {[%emt 0:07:07]} (38... Nxa4 $2 39. hxg6+ (39. Rxa4 g5 $18) 39... Kxg6 40. Rxa4 $18) (38... gxh5 39. Rh4 Qe8 (39... Nxa4 40. Rxh5+ Kg6 41. Nh4+ Kxh5 42. Qh8+ Kg4 43. Qh7 Re5 44. Qg6+ Rg5 45. f3#) (39... Kg6 $2 40. Qh8 $18) 40. Rxh5+ Qxh5 41. Qxe7 $11) 39. Nd4 {[%emt 0:01:37] Against Ne6} (39. h6 $17 {was called for.} Kxh6 (39... gxh6 40. Qxf6 Ne4 41. Qd4 $16) 40. Qh8+ Kg6 41. Qh1) 39... Nd3 $1 $19 {[%emt 0:01:13][%cal Od3f4] ( -> ...Nf4+!)} 40. Rb6 $2 {[%emt 0:00:01] [#]} (40. h6 $19 Nxb4 (40... gxh6 $2 41. Nf5 $18) (40... Kxh6 $2 41. Qxe7 Qxe7 42. Nf5+ Kh7 43. Nxe7 $18) 41. hxg7 Rxg7 42. Qxb4) 40... Nf4+ $1 {[%emt 0:00:26][%mdl 512] Black mates.} 41. gxf4 {[%emt 0:30:32]} Qg4+ {[%emt 0:11:01]} 42. Kh2 {[%emt 0:00:00]} Qxh5+ {[%emt 0:02:40]} 43. Kg2 {[%emt 0:00:00]} Qg4+ {[%emt 0:00:11]} 44. Kh2 {[%emt 0:00:00]} Qxf4+ {[%emt 0:01:25]} 45. Kg2 {[%emt 0:00:00]} Qg4+ {[%emt 0:00:05]} 46. Kh2 {[%emt 0:00:00]} Re1 {[%emt 0:05:46] Weighted Error Value: White=0.25 (precise) /Black=0.02 (flawless) .  Mistake:       	White=4     	---        Inaccurate:     	White=1     	---        OK:         	White=11    	Black=16     Best:        	White=2     	Black=1      Strong:       	---       	Black=3      Brilliant:      	---       	Black=1} 0-1

[Event "Czech Extraliga 2024-25"]
[Site "Czechia"]
[Date "2024.11.02"]
[Round "1.1"]
[White "Gumularz, Szymon"]
[Black "Svanda, Ondrej"]
[Result "1-0"]
[ECO "A21"]
[WhiteElo "2579"]
[BlackElo "2391"]
[Annotator "TA"]
[PlyCount "95"]
[EventDate "2024.09.12"]
[EventType "team-tourn"]
[EventCountry "CZE"]
[SourceTitle "playchess.com"]
[Source "ChessBase"]
[SourceQuality "1"]
[TimeControl "40/5400+30:1800+30"]

{[%evp 15,95,-25,-20,-24,-10,-7,18,0,0,-16,-14,-23,-14,-15,0,2,34,0,-17,-31,-27,-39,0,0,14,10,28,29,31,9,25,14,49,63,85,81,116,116,134,145,215,217,222,220,320,69,59,85,63,63,156,60,950,0,0,0,0,0,1677,1636,1219,1156,1084,1049,1663,1207,29988,29989,29986,1333,1826,1243,945,1143,1256,1237,1129,1039,807,966,1908,1890]} 1. c4 {[%emt 0:00:05]} e5 {[%emt 0:00:04]} 2. d3 {[%emt 0:00:08]} d6 {[%emt 0:00:08]} 3. g3 {[%emt 0:00:14]} f5 {[%emt 0:00:29]} 4. Bg2 {[%emt 0:00:58]} Nf6 {[%emt 0:00:05]} 5. Nc3 {[%emt 0:00:34]} Be7 {[%emt 0:01:39]} 6. b3 {[%emt 0:07:24] A21: English Opening: 1...e5 2 Nc3.} O-O {[%emt 0:00:53]} 7. Bb2 {[%emt 0:00:04]} c6 {[%emt 0:04:05]} 8. d4 $146 {[%emt 0:05:17]} ({Predecessor:} 8. Nf3 h6 9. O-O g5 10. e3 Be6 11. Rc1 Na6 12. a3 Qe8 13. Ne2 Kh7 14. Nd2 {0-1 Skoerys,F (1780)-Lantzsch,C (1959) GER-ch Net Amateur Gr-A Vor3 blitz 2020 (3)}) 8... Qe8 {[%emt 0:07:51]} 9. d5 {[%emt 0:02:25]} c5 {[%emt 0:08:36]} 10. Nh3 {[%emt 0:00:14]} h6 {[%emt 0:03:37]} 11. Qd2 {[%emt 0:03:34]} Na6 {[%emt 0:06:12]} 12. f4 {[%emt 0:01:01]} e4 {[%emt 0:03:14]} 13. Nf2 {[%emt 0:00:12]} Nc7 {[%emt 0:04:08]} 14. a4 {[%emt 0:11:13]} b6 {[%emt 0:04:41]} 15. e3 {[%emt 0:00:38]} Qg6 {[%emt 0:08:04]} 16. Bf1 {[%emt 0:13:20]} Bd7 {[%emt 0:01:29]} 17. Be2 {[%emt 0:05:57]} a6 {[%emt 0:02:04]} 18. O-O {[%emt 0:00:46]} Qh7 {[%emt 0:08:32]} (18... Rab8 $15) 19. a5 $11 {[%emt 0:04:16]} b5 {[%emt 0:00:33]} 20. b4 $1 {[%emt 0:00:14]} cxb4 {[%emt 0:02:52]} 21. Na2 {[%emt 0:00:18]} b3 {[%emt 0:05:21]} 22. Nb4 {[%emt 0:00:09]} Qg6 {[%emt 0:05:29]} 23. Rfc1 {[%emt 0:05:08]} h5 {[%emt 0:06:18]} 24. Kh1 {[%emt 0:00:10]} ({Much worse is} 24. c5 Be8 $11) 24... Ng4 {[%emt 0:04:23]} 25. Nxg4 {[%emt 0:00:13]} hxg4 {[%emt 0:00:03]} 26. Ra3 {[%emt 0:00:29]} Bf6 {[%emt 0:03:31]} 27. cxb5 {[%emt 0:00:48]} Nxb5 {[%emt 0:00:06]} (27... Bxb2 $16 28. Qxb2 Nxb5) 28. Rxb3 $18 {[%emt 0:00:04]} Qf7 {[%emt 0:01:47]} 29. Bxf6 {[%emt 0:01:34]} gxf6 {[%emt 0:00:01] [#]} (29... Qxf6 {is a better defense.} 30. Nc6 Bxc6 31. dxc6 Nc7) 30. Nxa6 $2 {[%emt 0:01:03]} (30. Nc6 $1 $18 {[%mdl 512]}) 30... Rxa6 $14 {[%emt 0:01:01]} 31. Bxb5 {[%emt 0:00:05]} Bxb5 {[%emt 0:01:10]} 32. Rxb5 {[%emt 0:00:04]} Rfa8 {[%emt 0:00:18]} ({Black should try} 32... Kh7 $14) 33. Qb2 {[%emt 0:07:59]} (33. Rc6 $16 Kg7 34. Qc1) 33... R8a7 $2 {[%emt 0:02:07][%mdl 8192]} (33... Qf8 $14) 34. Rc8+ $2 {[%emt 0:03:54]} (34. Rc6 $1 $18) 34... Kg7 {[%emt 0:00:03]} 35. Qc3 {[%emt 0:00:54]} Kg6 $1 {[%emt 0:01:07]} 36. Kg2 {[%emt 0:13:13]} Rb7 $2 {[%emt 0:04:46][%mdl 8192]} (36... Ra8 $11) 37. Rxb7 $1 $18 {[%emt 0:02:41]} Qxb7 {[%emt 0:00:00]} 38. Rf8 {[%emt 0:00:24]} Qe7 {[%emt 0:00:49] [#]} 39. Rg8+ $1 {[%emt 0:00:07]} Kf7 {[%emt 0:00:22]} 40. Rh8 {[%emt 0:00:27]} Kg7 {[%emt 0:01:03]} 41. Qc8 {[%emt 0:30:30]} Qf7 {[%emt 0:30:01]} 42. Qxa6 {[%emt 0:00:31]} (42. Rh4 $142 Qg8 43. Qxa6 Qxd5 44. Qa7+ Kg8 45. Qb8+ Kf7 46. Qc7+ (46. Rh7+ Kg6 $11) (46. Qb7+ Qxb7 47. Rh7+ Ke6 48. Rxb7 Kd5 49. Rc7 Ke6 50. a6 d5) 46... Ke6 47. Qc8+ Kf7 48. Qd7+ (48. Qb7+ Qxb7 49. Rh7+ Ke6 50. Rxb7 Kd5 51. Rc7 Ke6 52. a6 d5) 48... Kg8 49. Qe8+ Kg7 50. Qh8+ Kf7 51. Rh7+ Kg6 52. Qg7#) 42... Qxd5 {[%emt 0:00:26]} 43. Rb8 {[%emt 0:11:22]} Qd2+ {[%emt 0:00:04] [#]} 44. Kf1 $1 {[%emt 0:00:04]} Qd1+ {[%emt 0:00:03]} 45. Kf2 {[%emt 0:00:03]} Qf3+ {[%emt 0:00:04]} 46. Ke1 {[%emt 0:00:05]} Qxe3+ {[%emt 0:01:18]} 47. Kd1 {[%emt 0:00:54]} Qd4+ {[%emt 0:02:18]} 48. Ke2 {[%emt 0:01:28]} 1-0